Cogmind - Beta 17 @@@ ROGUE MODE // 2026.07.28 @ 21:33:14 Player: Elias Result: Destroyed by YI-UF0 with YI-UF0's Doublenader Performance ------------- Evolutions (0) 0 Regions Visited (2) 400 Robots Destroyed (24) 120 Value Destroyed (513) 513 Prototype IDs (0) 0 Alien Tech Used (0) 0 Bonus (0) 0 TOTAL SCORE: 1033 Bonus ------- None Cogmind --------- Core Integrity 0/250 Matter 282/300 Energy 100/100 System Corruption 0% Temperature Cool (0) Movement Treading (160) Location -10/Mines Parts ------- > --- POWER (1) -------- (None) > --- PROPULSION (2) --- Light Treads Light Treads > --- UTILITY (2) ------ Improved Heat Sink Small Storage Unit > --- WEAPON (2) ------- Particle Gun Particle Gun > --- INVENTORY (8) ---- Light Nuclear Core Aluminum Leg Aluminum Leg Targeting Computer Medium Laser Light Cannon Grenade Launcher Mining Laser Peak State ------------ > --- POWER ------------ Improved Ion Engine > --- PROPULSION ------- Light Treads Light Treads > --- UTILITY ---------- Improved Heat Sink Small Storage Unit > --- WEAPON ----------- Particle Gun Particle Gun > --- INVENTORY -------- Light Nuclear Core Aluminum Leg Aluminum Leg Targeting Computer Medium Laser Light Cannon Grenade Launcher Mining Laser [Rating: 13] Favorites ----------- Power Ion Engine Engine Ion Engine Propulsion Light Treads Treads Light Treads Utility Small Storage Unit Device Improved Terrain Scanner Storage Small Storage Unit Weapon Assault Rifle Energy Gun Medium Laser Ballistic Gun Assault Rifle Ballistic Cannon Light Cannon Launcher Grenade Launcher Special Weapon Mining Laser Build | -11 -10 -10 ------- Run | Yrd Mat Min Slots Evolved . | . . . Power . | . . . Propulsion . | . . . Utility . | . . . Weapon . | . . . Parts Attached 19 | 8 . 11 Power 3 | 1 . 2 Engine 3 | 1 . 2 Core . | . . . Reactor . | . . . Propulsion 4 | 2 . 2 Treads 4 | 2 . 2 Leg . | . . . Wheel . | . . . Hover . | . . . Flight . | . . . Utility 3 | 2 . 1 Device 2 | 1 . 1 Storage 1 | 1 . . Processor . | . . . Hackware . | . . . Protection . | . . . Artifact . | . . . Weapon 9 | 3 . 6 Energy Gun 4 | . . 4 Energy Cannon . | . . . Ballistic Gun 2 | 2 . . Ballistic Cannon 1 | . . 1 Launcher 1 | . . 1 Special Weapon 1 | 1 . . Impact Weapon . | . . . Slashing Weapon . | . . . Piercing Weapon . | . . . Special Melee Weapon . | . . . Unidentified Prototypes . | . . . Parts Lost 2 | . . 2 Power 2 | . . 2 Propulsion . | . . . Utility . | . . . Weapon . | . . . Highest Loss Streak 1 | . . 1 To Critical Strikes . | . . . Average Backups 6 | 2 5 7 Power . | . 1 . Propulsion 1 | 1 2 2 Utility . | . . . Weapon 3 | . 2 4 Tool/Special . | . . . Unused Backups 6 | . 1 5 Power 2 | . . 2 Propulsion 2 | . . 2 Utility 1 | . . 1 Weapon 1 | . 1 . Tool/Special . | . . . Average Slot Usage (%) 99 | . 100 99 Engine 13 | . 14 13 Treads 28 | . 28 28 Device 14 | . 14 14 Storage 14 | . 14 14 Energy Gun 14 | . . 19 Ballistic Gun 10 | . 28 3 Ballistic Cannon 2 | . . 3 Peak Build Rating 13 | 9 10 13 Average Rating 9 | 4 9 10 On Entrance 6 | . 9 10 Avg Prop Armor Cover (%) . | . . . Naked Turns . | . . . Heaviest Build 19 | 15 15 19 Greatest Support 40 | 40 40 40 Greatest Overweight (x) . | . . . Average Overweight (x) . | . . . Largest Inventory Capacity 8 | 8 8 8 Average Capacity 7 | 6 8 8 Most Carried 8 | 5 8 8 Average Carried 6 | 2 5 7 Final Capacity 8 | 8 8 8 Final Carried 8 | 4 8 8 Class Distribution -------------------- 65% | Mutant 34% | Scavenger-Mutant Dominant Class ---------------- Mutant | -10/Materials Scavenger-Mutant | -10/Mines Resources | -11 -10 -10 ----------- Run | Yrd Mat Min Matter Collected 622 | 190 56 376 Remotely . | . . . Salvage Created 736 | 111 218 407 Parts 55 | 10 17 28 Haulers Intercepted . | . . . Recyclers Shooed 1 | . . 1 Parts Field Recycled . | . . . Retrieved Matter . | . . . Parts Self-Destructed . | . . . Prevented . | . . . Parts Restored . | . . . Kills | -11 -10 -10 ------- Run | Yrd Mat Min Combat Hostiles Destroyed 19 | . 6 13 Guns 16 | . 6 10 Cannons 3 | . . 3 Classes Destroyed 6 | 2 3 1 Worker 2 | . 2 . Tunneler 2 | 2 . . Recycler 1 | 1 . . Swarmer 9 | . 3 6 Grunt 8 | . 3 5 Sentry 2 | . . 2 Best Kill Streak 4 | 3 3 4 Combat Bots Only 4 | . 3 4 Max Kills in Single Turn 1 | 1 1 1 Gunslinging . | . . . Exploded . | . . . Melee . | . . . Uniques/NPCs Destroyed . | . . . Combat | -11 -10 -10 -------- Run | Yrd Mat Min Hostile Shots Fired 80 | . 13 67 Missed 20 | . 2 18 Hits 60 | . 11 49 Projectile 60 | . 11 49 AOE 12 | . . 12 Critical Strikes 1 | . . 1 Damage Taken 993 | . 109 884 Core 260 | . . 260 Absorbed by Shields . | . . . Core Remaining (%) 100 | 100 . . Volleys Fired 62 | 5 20 37 Largest 2 | 1 2 2 Hottest 130 | 20 40 130 Shots Fired 109 | 5 40 64 Gun 100 | 5 40 55 Cannon 8 | . . 8 Launcher 1 | . . 1 Special . | . . . Kinetic 72 | 5 40 27 Thermal 36 | . . 36 Explosive 1 | . . 1 Electromagnetic . | . . . Robot Hit Streak 14 | 2 9 14 Robot Miss Streak 4 | 1 3 4 Penetration Max . | . . . Secondary Targets 1 | . 1 . Max Gunslinging Chain 1 | . 1 . Shots Hit Robots 75 | 4 24 47 Core Hits 37 | 4 11 22 Critical Kills . | . . . Critical Parts Destroyed . | . . . Critical Strikes 2 | . . 2 Burn 2 | . . 2 Melee Attacks . | . . . Impact . | . . . Slashing . | . . . Piercing . | . . . Sneak Attacks . | . . . Combat Hostiles . | . . . Follow-up Attacks . | . . . Damage Inflicted 1032 | 53 327 652 Guns 951 | 53 327 571 Cannons 72 | . . 72 Explosions 8 | . . 8 Melee . | . . . Ramming 1 | . . 1 Kinetic 610 | 53 327 230 Thermal 413 | . . 413 Explosive 8 | . . 8 Electromagnetic . | . . . Impact . | . . . Slashing . | . . . Piercing . | . . . Highest Corruption . | . . . Average Corruption . | . . . Corruption Purged . | . . . Corruption Blocked . | . . . Overload Shots . | . . . Overflow Damage . | . . . Projectiles . | . . . Explosions . | . . . Melee . | . . . Knockbacks 1 | . . 1 Impact . | . . . Kinetic 1 | . . 1 Secondary . | . . . Self-Inflicted Damage . | . . . Shots . | . . . Rammed 1 | . . 1 Targets Rammed 1 | . . 1 Kicked . | . . . Crushed . | . . . Highest Temperature 288 | . . 288 Average Temperature 99 | . . 99 Received Heat Transfer 222 | . 30 192 Effects 2 | . . 2 Energy Bleed 1 | . . 1 Interference 1 | . . 1 Siege Activations . | . . . Martial Activations . | . . . Shielding Activations . | . . . Robots Disrupted . | . . . Combat Hostiles . | . . . Robots Corrupted . | . . . Combat Hostiles . | . . . Parts Fried . | . . . Impact Corruptions . | . . . Robots Melted . | . . . Combat Hostiles . | . . . Parts Melted 1 | . . 1 Heat Transferred 1221 | . . 1221 Parts Sabotaged . | . . . Parts Stolen . | . . . Parts Stripped . | . . . Power Chain Reactions . | . . . Alert | -11 -10 -10 ------- Run | Yrd Mat Min Maximum Alert Level . | . . . Low Security (%) 100 | 100 100 100 Level 1 . | . . . Level 2 . | . . . Level 3 . | . . . Level 4 . | . . . Level 5 . | . . . High Security . | . . . Max Security . | . . . Peak Influence 135 | 10 126 135 Initial 37 | . . 37 Average 71 | 1 56 91 Influence Increases 527 | 15 166 346 Destroy 0b10 Robot/C 380 | . 120 260 Destroy 0b10 Robot/NC 25 | 15 10 . Destroy Leader 70 | . 20 50 Destroy Structure 7 | . 1 6 Lose Combat Pursuer 45 | . 15 30 Influence Decreases 458 | 15 70 373 Entered New Map 59 | . . 59 Time Decay 379 | 15 70 294 Lost Part 20 | . . 20 Squads Dispatched 2 | . 2 . Investigation 1 | . 1 . Extermination . | . . . Reinforcement 1 | . 1 . Assault . | . . . Garrison . | . . . Intercept . | . . . Searches Triggered . | . . . Construction Impeded . | . . . Haulers Reinforced . | . . . Active Scanning Responses . | . . . Cargo Convoy Interrupts . | . . . Stealth | -11 -10 -10 --------- Run | Yrd Mat Min Distress Signals 1 | . 1 . Communications Jammed . | . . . Distress Signals . | . . . Times Spotted 28 | . 10 18 Peak Tracking Total 5 | . 5 5 Tactical Retreats 4 | . 1 3 Traps | -11 -10 -10 ------- Run | Yrd Mat Min Traps Triggered 1 | . 1 . Indirectly . | . . . Trap Hack Attempts . | . . . Triggered . | . . . Disarmed . | . . . Reprogrammed . | . . . Reused . | . . . Traps Extracted . | . . . Installed . | . . . Triggered . | . . . Machines | -11 -10 -10 ---------- Run | Yrd Mat Min Machines Disabled 1 | . 1 . Max in Single Turn 1 | . 1 . Machines Repaired . | . . . Machines Dismantled . | . . . Machines Sabotaged . | . . . Overloaded Fab Kills . | . . . Hacking | -11 -10 -10 --------- Run | Yrd Mat Min Machines Accessed . | . . . Terminals . | . . . Fabricators . | . . . Repair Stations . | . . . Recycling Units . | . . . Scanalyzers . | . . . Garrison Access . | . . . Total Hacks . | . . . Successful . | . . . Failed . | . . . Catastrophic . | . . . Database Lockouts . | . . . Manual . | . . . Terminals . | . . . Fabricators . | . . . Repair Stations . | . . . Recycling Units . | . . . Scanalyzers . | . . . Garrison Access . | . . . Terminal Hacks . | . . . Fabricator Hacks . | . . . Repair Station Hacks . | . . . Recycling Unit Hacks . | . . . Scanalyzer . | . . . Garrison Access Hacks . | . . . Unauthorized Hacks . | . . . Terminals . | . . . Fabricators . | . . . Repair Stations . | . . . Recycling Units . | . . . Scanalyzers . | . . . Garrison Access . | . . . Data Cores Recovered . | . . . Used . | . . . Hacking Detections . | . . . Full Trace Events . | . . . Feedback Events . | . . . Feedback Blocked . | . . . Robot Schematics Acquired . | . . . Robots Built . | . . . Authchips . | . . . Time . | . . . Total Robot Build Rating . | . . . Part Schematics Acquired . | . . . Parts Built . | . . . Authchips . | . . . Time . | . . . Total Part Build Rating . | . . . Part Studies Acquired . | . . . Parts Repaired . | . . . Time . | . . . Parts Recycled . | . . . Recycled Matter . | . . . Retrieved Matter . | . . . Retrieved Components . | . . . Parts Scanalyzed . | . . . Part Schematics Acquired . | . . . Parts Damaged . | . . . Bothacking | -11 -10 -10 ------------ Run | Yrd Mat Min Used RIF Installer . | . . . Robots Hacked . | . . . Non-combat . | . . . Combat . | . . . Robot Hacks Applied . | . . . Relay Couplers Released . | . . . Fabnet Peak Effective % . | . . . Robots Rewired . | . . . Allies Hacked . | . . . Hacks Repelled . | . . . Allies | -11 -10 -10 -------- Run | Yrd Mat Min Total Allies . | . . . Largest Group . | . . . Highest-Rated Group . | . . . Highest-Rated Ally . | . . . Total Orders . | . . . Ally Attacks . | . . . Total Damage . | . . . Kills . | . . . Allies Corrupted . | . . . Allies Melted . | . . . Intel | -11 -10 -10 ------- Run | Yrd Mat Min Active Infowar (turns) 490 | 43 227 220 Terrain 490 | 43 227 220 Robot Analysis Total . | . . . Derelict Logs Recovered . | . . . Drone Launches . | . . . Drone Recoveries . | . . . Exploration | -11 -10 -10 ------------- Run | Yrd Mat Min Turns Passed 1006 | 136 227 643 Spaces Moved 468 | 72 101 295 Core 6 | 6 . . Treads 462 | 66 101 295 Legs . | . . . Wheels . | . . . Hover . | . . . Flight . | . . . Fastest Speed 50 | 50 160 160 Average Speed 158 | 150 160 160 Slowest Speed 160 | 160 160 160 Overloaded Moves . | . . . Propulsion Burnouts . | . . . Robots Hopped . | . . . Potential Cave-ins . | . . . Cave-ins Triggered . | . . . Exploration Rate (%) 31 | 5 28 60 Regions Visited 2 Branch Regions 1 Pre-discovered Areas . | . . . Known Exits Taken . | . . . Unknown Exits Taken 2 | 1 1 . Scrap Searched . | . . . Spaces Dug . | . . . Terrain Destroyed 6 | . . 6 Melee . | . . . Projectile . | . . . AOE 6 | . . 6 Terrain Rammed . | . . . Walls Destroyed . | . . . Machines Disabled . | . . . Actions | -11 -10 -10 --------- Run | Yrd Mat Min Total 622 | 93 128 401 Wait 46 | . 2 44 Move 466 | 71 100 295 Hop . | . . . Pick Up 18 | 9 5 4 Fast Attach 2 | 2 . . Attach 6 | 5 . 1 Detach . | . . . Swap 14 | 1 . 13 Drop 7 | . 1 6 Fire 62 | 5 20 37 Melee . | . . . Ram . | . . . Kick . | . . . Crush 1 | . . 1 Escape Stasis . | . . . Rewire . | . . . Trap . | . . . Miscellaneous . | . . . Route ------- -11/Scrapyard -10/Materials -10/Mines (discovered 1 exit: [*Mat]) History --------- Turn | Location | Event 8 | -11/Scrapyard | Discovered new exit (range 15) 137 | -11/Scrapyard | Entered Materials 296 | -10/Materials | Discovered new exit (range 12) 307 | -10/Materials | Build established: Mutant 364 | -10/Materials | Entered Mines 464 | -10/Mines | Discovered new exit (range 11) 762 | -10/Mines | Core integrity fell below 50% 969 | -10/Mines | Build established: Scavenger-Mutant 1002 | -10/Mines | Core integrity fell below 20% 1007 | -10/Mines | Destroyed by YI-UF0 with YI-UF0's Doublenader Last Messages --------------- 00882_ Acquired 4 matter. 00886_ Acquired 43 matter. 00887_ Acquired 1 matter. 00919_ Slammed into T-07 Excavator. 00937_ The unstable cave ceiling collapses. 00939_ U-05 Engineer destroyed. 00941_ The unstable cave ceiling collapses. 00941_ Wheel crushed. 00941_ YI-UF0: "BOOM!" 00941_ U-05 Engineer destroyed. 00941_ Acquired 17 matter. 00942_ The unstable cave ceiling collapses. 00989_ YI-UF0 mumbles something. 00993_ G-47 Trooper destroyed. 00994_ YI-UF0 mumbles something. 00995_ The unstable cave ceiling collapses. 00995_ Laser Drill disabled. 00996_ The unstable cave ceiling collapses. 01001_ Imp. Ion Engine destroyed. 01004_ The unstable cave ceiling collapses. Map ----- +----------------------------------------------------+ | ??????????????????????????????????????? | | ??????????????????????????????????????? | | ??????????????????????????????????????? | | ??????????????????????????????????????? | | ??????????????????????????????????????? | | ??????????????????????????????????????? | | ??????????????????????????????????????? | | ??????????????? ??????????????????????? | | ????????????? ??????????????????????? | | ?????????????* ??????????????????????? | | ???????????? * ?????????????????????? | | ??????????? = ?????????????????????? | | ???????????? ?????????????????????? | | ????????????? ##???????????????????? | | ?????????????? ???????????????????? | | ??????????????= ???????????????????? | | ??????????????? ???????????????????? | | ?????????? ???? ????????????####???? | | ????????? ?? ????# ####?????## ##??? | | ?????????# ? ??# ##??? # #??? | | ???????? # ?## ###? ##?? | | ???????%= # # # ## #?? | | ???????? = # # #?? | | ???? ?? = # # #?? | | #????? #?? | | ???????# ! # @ #?? | | ???????# # " #?? | | ?#???# # #??? | | ???????? # g ## ##??? | | ??????## ##??????? | | ???????## # # ##???????? | | ##??????#? # ## ## #????????? | | #?????##?#### =% ####### #????????? | | ????????????## ?????# #????????? | | ????????#???# ???#?# #????????? | | #####?#?????## ###### #????????? | | ## ########## %[ #????????? | | % # = #????????? | | ####### ####### #????????? | | ##?????# ##????# ???????? | | #?#?#??### #????# ###??????? | | ##???#?#### # #????# #????????? | | ##????# ### #????# #????????? | | #????# #?# #??### ###??????? | | #??### #?# #?## ##?????? | | # ##???# #?# =### #?????? | | ## #?##?# #?# [** #?????? | | ### #?#??# #?## ### ##?????? | | ??####??#?########??# ### ##?????? | | ???#?#????#?#???????# ## ####??? | +----------------------------------------------------+ Best States ------------- Heat Dissipation 39 Energy Generation 12 Energy Capacity 265 Matter Stores 290 Matter Capacity 300 Sight Range 16 Terrain Scan Range 16 Terrain Scan Density 10 Evasion (%) 40 Recoil Reduction 2 Item Schematics ----------------- None Robot Schematics ------------------ None Fabricated ------------ Nothing Repaired ---------- Nothing Studied --------- None Alien Tech Used ----------------- None Achievements -------------- None Challenges ------------ None Game ------ Seed DispersionArmoredDrivehammer Manual? 0 Play Time 00:11:58 Cumulative 45.3 hours Start 2026.07.28 @ 21:23:41 End 2026.07.28 @ 21:33:14 Sessions 1 Manual Loads 0 Difficulty Rogue Special Mode None Game No. 74 Rogue 74 Adventurer 0 Explorer 0 Win Type - Total 0 Types 0/0/0/0/0/0/0/0/0/0 Lore% 35 Gallery% 35 Achievement% 21 Wizard Run 0 Options --------- Layout 0 ASCII 0 Keyboard 0 Movement Mouse Keybinds 0 Fullscreen 1 Font 18/SmallcapsGlow Map View 76x50 Zoom Use 0% Tactical HUD 1 Map Filters NONE Filters NONE Steam 1 RUN: c9576edd-1d5a-43cb-83c2-1c2062246073